Cogmind - Beta 12 @@@ ROGUE MODE // 2023.04.30 @ 11:11:54 Player: Inkie Result: Destroyed self with Mini Grenade Launcher Performance ------------- Evolutions (1) 500 Regions Visited (3) 600 Robots Destroyed (45) 225 Value Destroyed (1049) 1049 Prototype IDs (5) 100 Alien Tech Used (0) 0 Bonus (0) 0 TOTAL SCORE: 2474 Bonus ------- None Cogmind --------- Core Integrity 0/400 Matter 80/300 Energy 125/125 System Corruption 0% Temperature Cool (0) Movement Rolling (115) Ox1 Location -9/Mines Parts ------- > --- POWER (1) -------- Light Ion Engine > --- PROPULSION (2) --- Compact Wheel > --- UTILITY (4) ------ Large Storage Unit Improved Targeting Computer > --- WEAPON (2) ------- Mini Grenade Launcher > --- INVENTORY (15) --- Light Treads Light Treads Improved Signal Interpreter ECM Suite High-powered Tractor Beam Spread Laser Spread Laser Improved Medium Laser Particle Cannon Assault Rifle Mini Grenade Launcher Peak State ------------ > --- POWER ------------ (None) > --- PROPULSION ------- Light Treads Compact Wheel > --- UTILITY ---------- Heat Sink Large Storage Unit Improved Targeting Computer Light Armor Plating > --- WEAPON ----------- Improved Medium Laser Particle Cannon > --- INVENTORY -------- Light Ion Engine Light Treads Light Treads Compact Wheel Compact Wheel Improved Signal Interpreter ECM Suite High-powered Tractor Beam Spread Laser Spread Laser Improved Medium Laser Assault Rifle Mini Grenade Launcher Mini Grenade Launcher Mini Grenade Launcher [Rating: 14] Favorites ----------- Power Ion Engine Engine Ion Engine Propulsion Light Treads Treads Light Treads Wheel Compact Wheel Utility Large Storage Unit Device Heat Sink Storage Large Storage Unit Processor Improved Targeting Computer Protection Light Armor Plating Weapon Assault Rifle Energy Gun Improved Medium Laser Energy Cannon Particle Cannon Ballistic Gun Assault Rifle Launcher Mini Grenade Launcher Build | -11 -10 -9 -9 ------- Run | Jun Mat Mat Min Slots Evolved 2 | . . 2 . Power . | . . . . Propulsion . | . . . . Utility 2 | . . 2 . Weapon . | . . . . Parts Attached 36 | 7 8 15 6 Power 6 | 2 3 . 1 Engine 6 | 2 3 . 1 Core . | . . . . Reactor . | . . . . Propulsion 9 | 2 1 4 2 Treads 6 | 2 1 3 . Leg . | . . . . Wheel 3 | . . 1 2 Hover . | . . . . Flight . | . . . . Utility 7 | 1 2 3 1 Device 2 | . 1 1 . Storage 2 | 1 1 . . Processor 1 | . . 1 . Hackware . | . . . . Protection 2 | . . 1 1 Artifact . | . . . . Weapon 14 | 2 2 8 2 Energy Gun 2 | . 1 1 . Energy Cannon 4 | . . 4 . Ballistic Gun 4 | 2 1 1 . Ballistic Cannon . | . . . . Launcher 4 | . . 2 2 Special Weapon . | . . . . Impact Weapon . | . . . . Slashing Weapon . | . . . . Piercing Weapon . | . . . . Special Melee Weapon . | . . . . Unidentified Prototypes 1 | . 1 . . Parts Lost 14 | . 1 5 8 Power 2 | . 1 1 . Propulsion 5 | . . 2 3 Utility 4 | . . 1 3 Weapon 3 | . . 1 2 Highest Loss Streak 5 | . 1 5 4 To Critical Strikes . | . . . . Average Slot Usage (%) 83 | . 91 73 77 Engine 8 | . 13 3 5 Treads 20 | . 28 13 5 Wheel 4 | . . 7 15 Device 7 | . 5 10 . Storage 12 | . 14 11 11 Processor 2 | . . 4 11 Protection 1 | . . 1 6 Energy Gun 9 | . 9 10 4 Energy Cannon 1 | . . 4 . Ballistic Gun 11 | . 18 4 . Launcher 2 | . . 1 17 Naked Turns . | . . . . Heaviest Build 32 | 14 31 32 32 Greatest Support 40 | 40 40 40 32 Greatest Overweight (x) 1 | . 1 1 1 Average Overweight (x) . | . . . . Largest Inventory Capacity 15 | 8 15 15 15 Average Capacity 14 | 7 14 15 15 Most Carried 15 | 1 4 15 15 Average Carried 6 | . 2 12 12 Final Capacity 15 | 8 15 15 15 Final Carried 15 | 1 4 15 11 Class Distribution -------------------- 100% | Mutant Dominant Class ---------------- Mutant | -10/Materials Mutant | -9/Materials Mutant | -9/Mines Resources | -11 -10 -9 -9 ----------- Run | Jun Mat Mat Min Matter Collected 838 | 190 358 230 60 Remotely . | . . . . Salvage Created 983 | . 421 502 60 Parts 84 | . 29 46 9 Haulers Intercepted . | . . . . Recyclers Shooed . | . . . . Parts Field Recycled . | . . . . Retrieved Matter . | . . . . Parts Self-Destructed . | . . . . Prevented . | . . . . Kills | -11 -10 -9 -9 ------- Run | Jun Mat Mat Min Combat Hostiles Destroyed 37 | . 12 15 10 Guns 16 | . 12 4 . Cannons 5 | . . 5 . AOE 16 | . . 6 10 Classes Destroyed 10 | . 5 2 3 Worker 4 | . . 3 1 Recycler 1 | . 1 . . Operator 3 | . 2 1 . Watcher 2 | . 1 1 . Swarmer 17 | . 6 7 4 Grunt 12 | . 6 5 1 Duelist 1 | . . . 1 Sentry 3 | . . 3 . Demolisher 2 | . . . 2 Assembled 2 | . . . 2 Best Kill Streak 9 | . 7 9 6 Combat Bots Only 7 | . 3 7 6 Max Kills in Single Turn 5 | . 1 5 3 Gunslinging . | . . . . Exploded 3 | . . 3 3 Melee . | . . . . Uniques/NPCs Destroyed . | . . . . Combat | -11 -10 -9 -9 -------- Run | Jun Mat Mat Min Damage Taken 1869 | . 448 748 673 Core 449 | . 45 230 174 Absorbed by Shields . | . . . . Core Remaining (%) 91 | 100 82 . . Volleys Fired 105 | . 47 42 16 Largest 2 | . 2 2 2 Hottest 124 | . 76 124 86 Shots Fired 172 | . 93 52 27 Gun 114 | . 93 20 1 Cannon 26 | . . 26 . Launcher 32 | . . 6 26 Special . | . . . . Kinetic 80 | . 69 11 . Thermal 60 | . 24 35 1 Explosive 32 | . . 6 26 Electromagnetic . | . . . . Robot Hit Streak 14 | . 14 6 11 Robot Miss Streak 3 | . 2 3 1 Penetration Max . | . . . . Secondary Targets 5 | . 4 1 . Max Gunslinging Chain 1 | . 1 1 . Shots Hit Robots 118 | . 65 34 19 Core Hits 82 | . 22 25 35 Critical Kills . | . . . . Critical Parts Destroyed . | . . . . Critical Strikes 2 | . 2 . . Burn 2 | . 2 . . Melee Attacks . | . . . . Impact . | . . . . Slashing . | . . . . Piercing . | . . . . Sneak Attacks . | . . . . Combat Hostiles . | . . . . Follow-up Attacks . | . . . . Damage Inflicted 3101 | . 949 1196 956 Guns 1129 | . 945 184 . Cannons 411 | . . 411 . Explosions 1557 | . . 601 956 Melee . | . . . . Ramming 4 | . 4 . . Kinetic 755 | . 656 99 . Thermal 785 | . 289 496 . Explosive 1557 | . . 601 956 Electromagnetic . | . . . . Impact . | . . . . Slashing . | . . . . Piercing . | . . . . Highest Corruption 2 | . 2 . . Average Corruption 2 | . 2 . . Corruption Purged . | . . . . Corruption Blocked . | . . . . Effects 1 | . 1 . . Message Errors 1 | . 1 . . Overload Shots . | . . . . Overflow Damage 87 | . . 50 37 Projectiles . | . . . . Explosions 87 | . . 50 37 Melee . | . . . . Knockbacks . | . . . . Impact . | . . . . Kinetic . | . . . . Secondary . | . . . . Self-Inflicted Damage 454 | . . 100 354 Shots 15 | . . 3 12 Rammed 1 | . 1 . . Targets Rammed 1 | . 1 . . Kicked . | . . . . Crushed . | . . . . Highest Temperature 139 | . 93 139 9 Average Temperature 33 | . 30 37 6 Received Heat Transfer 474 | . 192 276 6 Siege Activations . | . . . . Robots Corrupted . | . . . . Combat Hostiles . | . . . . Parts Fried . | . . . . Impact Corruptions . | . . . . Robots Melted . | . . . . Combat Hostiles . | . . . . Parts Melted 2 | . . 2 . Heat Transferred 1702 | . 777 925 . Parts Sabotaged . | . . . . Parts Stolen . | . . . . Parts Stripped . | . . . . Power Chain Reactions . | . . . . Missiles Intercepted . | . . . . Alert | -11 -10 -9 -9 ------- Run | Jun Mat Mat Min Peak Influence 418 | . 289 394 418 Initial 153 | . . 60 153 Average 152 | . 135 143 335 Maximum Alert Level 2 | . 1 1 2 Low Security (%) 68 | 100 73 76 2 Level 1 30 | . 26 23 94 Level 2 . | . . . 3 Level 3 . | . . . . Level 4 . | . . . . Level 5 . | . . . . High Security . | . . . . Max Security . | . . . . Squads Dispatched 3 | . 2 1 . Investigation . | . . . . Extermination . | . . . . Reinforcement 3 | . 2 1 . Assault . | . . . . Garrison . | . . . . Intercept . | . . . . Searches Triggered . | . . . . Construction Impeded . | . . . . Haulers Reinforced . | . . . . Active Scanning Responses . | . . . . Cargo Convoy Interrupts . | . . . . Stealth | -11 -10 -9 -9 --------- Run | Jun Mat Mat Min Distress Signals 2 | . 1 1 . Communications Jammed . | . . . . Distress Signals . | . . . . Times Spotted 56 | . 21 21 14 Peak Tracking Total 7 | . 4 7 6 Tactical Retreats 1 | . 1 . . Traps | -11 -10 -9 -9 ------- Run | Jun Mat Mat Min Traps Triggered 3 | . 3 . . Indirectly . | . . . . Trap Hack Attempts . | . . . . Triggered . | . . . . Disarmed . | . . . . Reprogrammed . | . . . . Reused . | . . . . Traps Extracted . | . . . . Installed . | . . . . Triggered . | . . . . Machines | -11 -10 -9 -9 ---------- Run | Jun Mat Mat Min Machines Disabled 8 | . . 5 3 Max in Single Turn 3 | . . 2 3 Machines Repaired . | . . . . Machines Sabotaged . | . . . . Overloaded Fab Kills . | . . . . Hacking | -11 -10 -9 -9 --------- Run | Jun Mat Mat Min Machines Accessed 7 | . 4 3 . Terminals 7 | . 4 3 . Fabricators . | . . . . Repair Stations . | . . . . Recycling Units . | . . . . Scanalyzers . | . . . . Garrison Access . | . . . . Total Hacks 18 | . 8 10 . Successful 11 | . 4 7 . Failed 7 | . 4 3 . Catastrophic 2 | . 1 1 . Database Lockouts . | . . . . Manual 14 | . 7 7 . Terminals 18 | . 8 10 . Fabricators . | . . . . Repair Stations . | . . . . Recycling Units . | . . . . Scanalyzers . | . . . . Garrison Access . | . . . . Terminal Hacks 8 | . 3 5 . Part Schematic 1 | . . 1 . Prototype ID Bank 3 | . 2 1 . Branch Access Points 1 | . . 1 . Alert Level 1 | . . 1 . Unreport Threat 1 | . . 1 . Hauler Manifests 1 | . 1 . . Fabricator Hacks . | . . . . Repair Station Hacks . | . . . . Recycling Unit Hacks . | . . . . Scanalyzer . | . . . . Garrison Access Hacks . | . . . . Unauthorized Hacks 3 | . 1 2 . Terminals 3 | . 1 2 . Botnet 1 | . . 1 . Operators 2 | . 1 1 . Fabricators . | . . . . Repair Stations . | . . . . Recycling Units . | . . . . Scanalyzers . | . . . . Garrison Access . | . . . . Data Cores Recovered . | . . . . Used . | . . . . Hacking Detections 6 | . 3 3 . Full Trace Events . | . . . . Feedback Events . | . . . . Feedback Blocked . | . . . . Robot Schematics Acquired . | . . . . Robots Built . | . . . . Authchips . | . . . . Time . | . . . . Total Robot Build Rating . | . . . . Part Schematics Acquired 1 | . . 1 . Parts Built . | . . . . Authchips . | . . . . Time . | . . . . Total Part Build Rating . | . . . . Parts Repaired . | . . . . Time . | . . . . Parts Recycled . | . . . . Recycled Matter . | . . . . Retrieved Matter . | . . . . Retrieved Components . | . . . . Parts Scanalyzed . | . . . . Part Schematics Acquired . | . . . . Parts Damaged . | . . . . Bothacking | -11 -10 -9 -9 ------------ Run | Jun Mat Mat Min Used RIF Installer . | . . . . Robots Hacked . | . . . . Non-combat . | . . . . Combat . | . . . . Robot Hacks Applied . | . . . . Relay Couplers Released . | . . . . Fabnet Peak Effective % . | . . . . Robots Rewired . | . . . . Allies Hacked . | . . . . Hacks Repelled . | . . . . Allies | -11 -10 -9 -9 -------- Run | Jun Mat Mat Min Total Allies . | . . . . Largest Group . | . . . . Highest-Rated Group . | . . . . Highest-Rated Ally . | . . . . Total Orders . | . . . . Ally Attacks . | . . . . Total Damage . | . . . . Kills . | . . . . Allies Corrupted . | . . . . Allies Melted . | . . . . Intel | -11 -10 -9 -9 ------- Run | Jun Mat Mat Min Robot Analysis Total . | . . . . Derelict Logs Recovered . | . . . . Drone Launches . | . . . . Drone Recoveries . | . . . . Exploration | -11 -10 -9 -9 ------------- Run | Jun Mat Mat Min Turns Passed 1996 | 84 1009 708 195 Spaces Moved 1118 | 48 519 413 138 Core 2 | 2 . . . Treads 657 | 46 519 92 . Legs . | . . . . Wheels 459 | . . 321 138 Hover . | . . . . Flight . | . . . . Fastest Speed 50 | 50 160 115 100 Average Speed 140 | 155 160 125 105 Slowest Speed 240 | 160 240 240 115 Overloaded Moves . | . . . . Propulsion Burnouts . | . . . . Robots Hopped . | . . . . Cave-ins Triggered . | . . . . Exploration Rate (%) 42 | 4 83 45 37 Regions Visited 3 Branch Regions 1 Pre-discovered Areas . | . . . . Known Exits Taken 1 | . . 1 . Unknown Exits Taken 2 | 1 1 . . Scrap Searched 1 | . . . 1 Spaces Dug . | . . . . Terrain Destroyed 155 | . . 14 141 Melee . | . . . . Projectile . | . . . . AOE 155 | . . 14 141 Terrain Rammed . | . . . . Walls Destroyed . | . . . . Machines Disabled . | . . . . Actions | -11 -10 -9 -9 --------- Run | Jun Mat Mat Min Total 1361 | 54 601 545 161 Wait 88 | . 22 65 1 Move 1115 | 47 518 412 138 Hop . | . . . . Pick Up 14 | . 3 11 . Fast Attach 17 | 6 6 4 1 Attach 7 | . 1 2 4 Detach . | . . . . Swap 12 | 1 1 9 1 Drop 2 | . 2 . . Fire 105 | . 47 42 16 Melee . | . . . . Ram . | . . . . Kick . | . . . . Crush 1 | . 1 . . Escape Stasis . | . . . . Rewire . | . . . . Trap . | . . . . Miscellaneous . | . . . . Route ------- -11/Junkyard -10/Materials (discovered 4 exits: *Mat x2 / [*Min x2]) -9/Materials (discovered 2 exits: [*Mat] / *Min) -9/Mines History --------- Turn | Location | Event 29 | -11/Junkyard | Discovered new exit (range 15) 85 | -11/Junkyard | Entered Materials 316 | -10/Materials | Build established: Mutant 458 | -10/Materials | Discovered new exit (range 7) 677 | -10/Materials | Discovered new exit (range 13) 832 | -10/Materials | Discovered new exit (range 15) 994 | -10/Materials | Discovered new exit (range 10) 1094 | -10/Materials | Entered another Materials area 1094 | -9/Materials | Evolved 2 slots: Utility x2 1331 | -9/Materials | Lost 5 parts (1p2n1u1w) 1414 | -9/Materials | Core integrity fell below 50% 1451 | -9/Materials | Identified exit to Mines 1459 | -9/Materials | Discovered new exit (range 15) 1732 | -9/Materials | Destroyed 7 combat bots 1802 | -9/Materials | Entered Mines 1803 | -9/Mines | Assembled infested the area 1815 | -9/Mines | Met a Derelict bent on vengeance 1895 | -9/Mines | Core integrity fell below 20% 1923 | -9/Mines | Lost 4 parts (2n1u1w) 1997 | -9/Mines | Destroyed self with Mini Grenade Launcher Last Messages --------------- 01897_ D-53 Grenadier destroyed. 01900_ The unstable cave ceiling collapses. 01924_ T-07 Excavator is excavating. 01956_ Searching scrap... 01956_ Found Targeting Computer. 01956_ Found Med. Armor Plating. 01956_ Found 27 Matter. 01957_ Acquired 27 matter. 01959_ Acquired Med. Armor Plating. 01967_ T-07 Excavator is excavating. 01989_ Acquired 21 matter. 01991_ Com. Wheel destroyed. 01991_ Destroyed Com. Wheel. 01991_ as-52146 destroyed. 01994_ as-20314 destroyed. 01994_ Med. Armor Plating destroyed. 01994_ Destroyed Med. Armor Plating. 01994_ K-01 Serf destroyed. 01997_ Mni. Grenade Launcher destroyed. 01997_ Destroyed Mni. Grenade Launcher. Map ----- +----------------------------------------------------+ | ??????????????????????????????????????????????# | | ??????????????????????????????????????????????#### | | ?????????????????????????????????????????????????# | | ?????????????????????????????????????????????????? | | ?????????????????????????????????????????????????? | | ?????????????????????????????????????????????????? | | ?????????????????????????????????????????????????? | | ?????????????????????????????????????????????????? | | ?????????????????????????????????????????????????? | | ?????????????????????????????????????????????????? | | ?????????????????????????????????????????????????? | | ?????????????????????????????????????????????????? | | ?????????????????????????????###++###????????????? | | ?????????????????????????????# #????????????? | | ???????????????????????????### ##???????????? | | ????????? ???#??###???##?## ##??????????? | | ?????????# ## ### ## #??????????? | | ????????????# % % ##?????????? | | ?????????????# % aa ####??????? | | ?????????????## # | = #??????? | | ?????????????## # =%! %! ## #??????? | | ?????????????# # = ### #??????? | | ?????????????# ### #######? | | ?????????????## % #? | | ??????????????????# a # ! #? | | ???????????????????# @ #### ######### #? | | ???????????????????## %= #?## ##???????# #? | | ????????????????????## # = ##??# ##???????# #? | | ?????????????????????#?## ###???# ##??????# ## | | ????????????????????????# #?????# ##?????# # | | ????????????????????????# #?????# ##??### # | | ????????????????????????# #?????# # #### # | | ????????????????????????# #?????# ## ## # # | | ????????????????????????# #?????# ## # | | ????????????????????????? ??????# ### # | | ????????????????????????? ?????? ?## | | ?????????????????????????#?????? ??## | | ???????????????????????????????? #???### | | ???????????????????????????????? ??????## | | ????????????????????????????????###???????## # | | ???????????????????????????????????????????### | | ?????????????????????????????????????????????##### | | ?????????????????????????????????????????????????? | | ?????????????????????????????????????????????????? | | ?????????????????????????????????????????????????? | | ?????????????????????????????????????????????????? | | ?????????????????????????????????????????????????? | | ?????????????????????????????????????????????????? | | ?????????????????????????????????????????????????? | | | +----------------------------------------------------+ Best States ------------- Heat Dissipation 38 Energy Generation 10 Energy Capacity 250 Matter Stores 300 Matter Capacity 300 Sight Range 16 Terrain Scan Density 10 Armor Coverage 225 Evasion (%) 40 Targeting Accuracy 6 Recoil Reduction 2 Item Schematics ----------------- Plasma Cutter | -9/Materials | Hacked Robot Schematics ------------------ None Fabricated ------------ Nothing Alien Tech Used ----------------- None Achievements -------------- None Challenges ------------ None Game ------ Seed TrackerGlidesysTrap Manual? 0 Play Time 00:13:31 Cumulative 471.4 hours Start 2023.04.30 @ 10:58:13 End 2023.04.30 @ 11:11:54 Sessions 1 Manual Loads 0 Difficulty Rogue Special Mode None Game No. 511 Rogue 502 Adventurer 8 Explorer 1 Win Type - Total 8 Types 5/1/2/0/0/0/0/0/0 Lore% 81 Gallery% 91 Achievement% 71 Wizard Run 0 Options --------- ASCII 0 Keyboard 0 Movement Numpad Keybinds 1 Fullscreen 2 Font 18/Terminus Map View 76x50 Tactical HUD 1 Map Filters NONE Filters NONE Steam 1 RUN: 3ff6f0da-98f6-4eb6-b089-2d515f6bfcd8